bitfinex/quotes_SOLUSD_20250706
["timestamp","ask_amount","ask_price","bid_price","bid_amount"]
[1751786709768,0.06,148.43,148.4,67.66852318]
[1751786710190,7.54688344,148.42,148.4,67.66852318]
[1751786710491,0.06,148.43,148.4,67.66852318]
[1751786710693,7.54966126,148.42,148.4,67.66852318]
[1751786710914,0.06,148.43,148.4,67.66852318]
[1751786711089,7.54966126,148.42,148.4,67.66852318]
[1751786711295,0.06,148.43,148.4,67.66852318]
[1751786711469,7.55119615,148.42,148.4,67.66852318]
[1751786711788,0.06,148.43,148.4,67.66852318]
[1751786711992,7.55119615,148.42,148.4,67.66852318]
[1751786712194,6.01183046,148.43,148.4,67.66852318]
[1751786712370,7.55158612,148.42,148.4,67.66852318]
[1751786712567,6.01183046,148.43,148.4,67.66852318]
[1751786712789,7.55283609,148.42,148.4,67.66852318]
[1751786712973,6.01183046,148.43,148.4,67.66852318]
[1751786713177,7.55283335,148.42,148.4,67.66852318]
[1751786713388,6.01183046,148.43,148.4,67.66852318]
[1751786713597,7.55364217,148.42,148.4,67.66852318]
[1751786713769,6.01183046,148.43,148.4,67.66852318]
[1751786714063,7.55364217,148.42,148.4,67.66852318]
[1751786714267,6.01183046,148.43,148.4,67.66852318]
[1751786714463,7.55399333,148.42,148.4,67.66852318]
[1751786714693,6.01183046,148.43,148.4,67.66852318]
[1751786714896,7.55443217,148.42,148.4,67.66852318]
[1751786715194,6.01183046,148.43,148.4,67.66852318]
[1751786715380,7.55476618,148.42,148.4,67.66852318]
[1751786715579,6.01183046,148.43,148.4,67.66852318]
[1751786715776,7.55526654,148.42,148.4,67.66852318]
[1751786715994,0.06,148.43,148.4,67.66852318]
[1751786716293,7.55526381,148.42,148.4,67.66852318]
[1751786716465,0.06,148.43,148.4,67.66852318]
[1751786716669,5.95183046,148.41,148.4,60.93]
[1751786716884,13.50797306,148.41,148.4,60.93]
[1751786717678,7.5561426,148.41,148.4,60.93]
[1751786720489,13.50797306,148.41,148.4,0.03]
[1751786720687,20.24606348,148.41,148.4,0.03]
[1751786722387,20.24606348,148.41,148.35,67.6706412]
[1751786722581,5.95183046,148.39,148.35,67.6706412]
[1751786722781,7.5561426,148.38,148.35,67.6706412]
[1751786722983,7.5561426,148.37,148.35,73.62247166]
[1751786723183,15.40123629,148.42,148.36,24.60147932]
[1751786723495,13.51068794,148.41,148.36,85.50147932]
[1751786723692,7.55885748,148.4,148.36,85.50147932]
[1751786723897,7.55885748,148.39,148.37,6.73990698]
[1751786724080,7.55885748,148.38,148.37,67.63990698]
[1751786731176,7.55885748,148.38,148.37,60.9]
[1751786734799,7.55885748,148.38,148.37,67.63990698]
[1751786735796,7.55885748,148.38,148.37,67.66990698]
[1751786737601,7.55866146,148.38,148.37,67.66990698]
[1751786740415,0.06,148.4,148.37,71.47845567]
[1751786740707,7.55845767,148.39,148.37,71.47845567]
[1751786741002,0.06,148.4,148.37,71.47845567]
[1751786741199,7.55845767,148.39,148.37,71.47845567]
[1751786741503,0.06,148.4,148.37,71.47845567]
[1751786741705,7.55872021,148.39,148.37,71.47845567]
[1751786741897,0.06,148.4,148.37,71.47845567]
[1751786742099,7.55872294,148.39,148.37,71.47845567]
[1751786742284,0.06,148.4,148.37,71.47845567]
[1751786742484,7.55899207,148.39,148.37,71.47845567]
[1751786742684,0.06,148.4,148.37,71.47845567]
[1751786742898,7.5589948,148.39,148.37,71.47845567]
[1751786743098,0.06,148.4,148.37,71.47845567]
[1751786743292,7.55929801,148.39,148.37,71.47845567]
[1751786743501,0.06,148.4,148.37,71.47845567]
[1751786743685,7.55942403,148.39,148.37,71.47845567]
[1751786743885,0.06,148.4,148.37,71.47845567]
[1751786744097,7.55942403,148.39,148.37,71.47845567]
[1751786744300,0.06,148.4,148.37,71.47845567]
[1751786744485,7.55987578,148.39,148.37,71.47845567]
[1751786744685,0.06,148.4,148.37,71.47845567]
[1751786744909,7.55987578,148.39,148.37,71.47845567]
[1751786745110,0.06,148.4,148.37,71.47845567]
[1751786745309,7.56016008,148.39,148.37,71.47845567]
[1751786745512,0.06,148.4,148.37,71.47845567]
[1751786745691,7.56016008,148.39,148.37,71.47845567]
[1751786745882,0.06,148.4,148.37,71.47845567]
[1751786746086,7.5601628,148.39,148.37,71.47845567]
[1751786746300,0.06,148.4,148.37,71.47845567]
[1751786746493,7.56081394,148.39,148.37,71.47845567]
[1751786746697,0.06,148.4,148.37,71.47845567]
[1751786746905,7.56081394,148.39,148.37,71.47845567]
[1751786747092,0.06,148.4,148.37,71.47845567]
[1751786747283,7.56077536,148.39,148.37,71.47845567]
[1751786747496,0.06,148.4,148.38,29.1972587]
[1751786747699,0.06,148.4,148.39,22.45819755]
[1751786747908,7.62031674,148.4,148.39,83.35819755]
[1751786748111,0.06,148.4,148.39,83.35819755]
[1751786748987,0.06,148.4,148.39,90.09719613]
[1751786772436,0.06,148.43,148.41,25.38773928]
[1751786772633,0.06,148.43,148.41,90.03628797]
[1751786775442,0.06,148.43,148.41,67.57809042]
[1751786777338,0.06,148.43,148.42,44.64964886]
[1751786777545,0.06,148.43,148.42,48.45819755]
[1751786778436,0.06,148.43,148.42,82.55819755]
[1751786779231,0.06,148.43,148.42,89.29583398]
[1751786779420,1e-08,148.43,148.42,89.29583398]
[1751786781340,7.55164191,148.47,148.45,25.3859237]
[1751786781646,7.55164191,148.46,148.45,90.03447238]
[1751786782325,6.6451,148.49,148.45,90.03447238]
[1751786782526,7.55033111,148.48,148.47,6.73536741]
[1751786782926,7.55033111,148.48,148.47,67.5753674]
[1751786783246,7.55033111,148.48,148.47,71.38391609]
[1751786784747,7.55033111,148.48,148.47,67.5753674]
[1751786791449,0.1,148.5,148.47,67.5753674]
[1751786791630,7.5452611,148.49,148.47,67.5753674]
[1751786791949,0.1,148.5,148.47,67.5753674]
[1751786792152,7.54526382,148.49,148.47,67.5753674]
[1751786792326,0.1,148.5,148.47,67.5753674]
[1751786792531,7.54547089,148.49,148.47,67.5753674]
[1751786792738,0.1,148.5,148.47,67.5753674]
[1751786793048,7.54547089,148.49,148.47,67.5753674]
[1751786793255,0.1,148.5,148.47,67.5753674]
[1751786793442,7.54476861,148.49,148.47,67.5753674]
[1751786793738,0.1,148.5,148.47,67.5753674]
[1751786793941,7.54476589,148.49,148.47,67.5753674]
[1751786794140,0.1,148.5,148.47,67.5753674]
[1751786794329,7.54425127,148.49,148.47,71.38391609]
[1751786794529,0.1,148.5,148.47,71.38391609]
[1751786794732,7.54412612,148.49,148.47,71.38391609]
[1751786795050,0.1,148.5,148.47,71.38391609]
[1751786795252,0.1,148.5,148.48,3.80854869]
[1751786796038,7.54335394,148.49,148.47,71.38391609]
[1751786796242,0.1,148.5,148.47,71.38391609]
[1751786796556,7.54276018,148.49,148.47,71.38391609]
[1751786796759,0.1,148.5,148.47,71.38391609]
[1751786796936,7.54276018,148.49,148.47,71.38391609]
[1751786797132,0.1,148.5,148.47,71.38391609]
[1751786797333,7.54234291,148.49,148.47,71.38391609]
[1751786797535,0.1,148.5,148.47,71.38391609]
[1751786797752,7.54234291,148.49,148.47,71.38391609]
[1751786797959,0.1,148.5,148.47,71.38391609]
[1751786798143,7.54234291,148.49,148.47,71.38391609]
[1751786798344,0.1,148.5,148.47,71.38391609]
[1751786798539,7.54208524,148.49,148.47,71.38391609]
[1751786798848,0.1,148.5,148.47,71.38391609]
[1751786799042,7.54208793,148.49,148.47,71.38391609]
[1751786799248,0.1,148.5,148.47,71.38391609]
[1751786799447,7.54198926,148.49,148.47,71.38391609]
[1751786799658,0.1,148.5,148.47,71.38391609]
[1751786799956,7.54198926,148.49,148.47,71.38391609]
[1751786800164,0.1,148.5,148.47,71.38391609]
[1751786800364,7.54205732,148.49,148.47,71.38391609]
[1751786800566,0.1,148.5,148.47,71.38391609]
[1751786800867,7.54206004,148.49,148.47,71.38391609]
[1751786801045,0.1,148.5,148.47,71.38391609]
[1751786801245,0.1,148.5,148.48,18.64964886]
[1751786801450,11.35072133,148.49,148.48,60.83999999]
[1751786802146,7.54217264,148.49,148.48,60.83999999]
[1751786802355,11.35072133,148.49,148.48,60.83999999]
[1751786805068,11.35072133,148.49,148.46,67.57579441]
[1751786805261,7.54217264,148.48,148.46,67.57579441]
[1751786805461,7.54217264,148.47,148.46,67.57579441]
[1751786805762,7.54217264,148.47,148.46,60.83999999]
[1751786813779,11.35072133,148.47,148.45,60.83999999]
[1751786814074,7.54217264,148.46,148.45,67.57627483]
[1751786815262,7.54217264,148.46,148.45,71.38482352]
[1751786816879,7.54217264,148.46,148.45,90.03447238]
[1751786817058,0.1,148.5,148.46,18.64964886]
[1751786817259,7.55729403,148.49,148.48,3.80854869]
[1751786818972,7.55729403,148.49,148.48,10.54346248]
[1751786819282,7.55729403,148.49,148.48,90.03311133]
[1751786825991,7.61729403,148.49,148.48,90.03311133]
[1751786829687,7.61729403,148.49,148.48,86.22456264]
[1751786829878,7.61729403,148.49,148.48,90.03311133]
[1751786832886,7.61729403,148.49,148.48,86.22456264]
[1751786833283,7.61729403,148.49,148.48,60.83999999]
[1751786834998,7.61729403,148.49,148.48,67.57491378]
[1751786835373,7.61729403,148.49,148.48,86.22456264]
[1751786835571,7.61729403,148.49,148.48,90.03311133]
[1751786835772,7.61729403,148.49,148.48,86.22456264]
[1751786835996,7.61729403,148.49,148.48,90.03311133]
[1751786839579,7.11729403,148.49,148.48,90.03311133]
[1751786839779,0.06,148.49,148.48,105.26730609]
[1751786840475,0.06,148.49,148.48,90.03311133]
[1751786843479,0.1,148.53,148.51,18.64964886]
[1751786843700,0.1,148.53,148.51,83.03819754]
[1751786844377,0.1,148.53,148.51,60.57999999]
[1751786849382,13.35681924,148.53,148.51,60.57999999]
[1751786849792,13.25681924,148.53,148.51,60.57999999]
[1751786851612,7.55373915,148.52,148.51,60.57999999]
[1751786853678,20.81055839,148.52,148.51,60.57999999]
[1751786854077,11.36228784,148.52,148.51,60.57999999]
[1751786854304,11.36228784,148.52,148.51,41.6228199]
[1751786855083,18.09538775,148.52,148.51,41.6228199]
[1751786855296,18.09538775,148.52,148.47,53.10775766]
[1751786855501,11.36228784,148.51,148.47,53.10775766]
[1751786855800,7.55373915,148.5,148.47,53.10775766]
[1751786856001,7.55373915,148.49,148.47,53.10775766]
[1751786856305,7.55373915,148.48,148.47,53.10775766]
[1751786857187,7.55373915,148.48,148.47,27.7228199]
[1751786867006,7.55845907,148.46,148.43,3.80854869]
[1751786867316,7.55845907,148.45,148.41,29.80854869]
[1751786867518,7.55845907,148.44,148.4,3.80854869]
[1751786867836,7.55845907,148.43,148.4,3.80854869]
[1751786868009,7.55845907,148.42,148.4,3.80854869]
[1751786868342,10.54500018,148.45,148.4,3.80854869]
[1751786868549,7.55416435,148.44,148.4,3.80854869]
[1751786868701,7.55416435,148.43,148.4,3.80854869]
[1751786869028,7.55416435,148.42,148.4,3.80854869]
[1751786869233,10.54500018,148.45,148.4,3.80854869]
[1751786869416,7.55038173,148.44,148.4,3.80854869]
[1751786869728,1.5918,148.47,148.43,3.80854869]
[1751786869902,7.54939062,148.46,148.43,3.80854869]
[1751786870098,7.54939062,148.45,148.43,3.80854869]
[1751786870330,1.5918,148.47,148.43,3.80854869]
[1751786870510,7.54792062,148.46,148.43,3.80854869]
[1751786870711,7.54792062,148.45,148.43,3.80854869]
[1751786870923,8.32746907,148.47,148.43,3.80854869]
[1751786871111,7.54792062,148.46,148.43,3.80854869]
[1751786871303,7.54792062,148.45,148.43,3.80854869]
[1751786871507,8.32746907,148.47,148.43,3.80854869]
[1751786871716,7.54650043,148.46,148.43,3.80854869]
[1751786871915,7.54650043,148.45,148.43,5.94531272]
[1751786872241,1.5918,148.47,148.44,5.94531272]
[1751786872399,7.54477624,148.46,148.44,5.94531272]
[1751786872608,6.73505358,148.48,148.44,5.94531272]
[1751786872805,7.54462481,148.47,148.44,5.94531272]
[1751786873007,7.54462481,148.46,148.44,5.94531272]
[1751786873207,6.73505358,148.48,148.44,5.94531272]
[1751786873408,7.54393179,148.47,148.44,5.94531272]
[1751786873628,7.54393179,148.46,148.44,5.94531272]
[1751786873823,6.73505358,148.48,148.44,5.94531272]
[1751786874028,7.54392634,148.47,148.44,6.00531272]
[1751786874334,7.54392634,148.46,148.44,6.00531272]
[1751786874545,6.73505358,148.48,148.44,6.00531272]
[1751786874714,7.54343082,148.47,148.44,12.7419919]
[1751786874909,7.54343082,148.46,148.44,12.7419919]
[1751786875129,12.67986696,148.49,148.44,12.7419919]
[1751786875436,7.5429785,148.48,148.44,12.7419919]
[1751786875616,7.5429785,148.47,148.44,12.7419919]
[1751786875817,7.5429785,148.46,148.44,12.7419919]
[1751786876058,12.67986696,148.49,148.44,12.7419919]
[1751786876227,7.5429785,148.48,148.44,12.7419919]
[1751786876436,7.5429785,148.47,148.44,12.7419919]
[1751786876609,12.67986696,148.49,148.44,12.7419919]
[1751786876904,7.54258574,148.48,148.44,12.7419919]
[1751786877110,7.54258574,148.47,148.44,12.7419919]
[1751786877312,12.67986696,148.49,148.44,12.7419919]
[1751786877516,7.54224081,148.48,148.44,12.7419919]
[1751786877715,7.54224081,148.47,148.44,12.7419919]
[1751786877935,7.54224081,148.46,148.44,12.7419919]
[1751786878105,6.73455424,148.49,148.44,12.7419919]
[1751786878307,7.5419243,148.48,148.44,12.7419919]
[1751786878531,7.5419243,148.47,148.44,12.7419919]
[1751786878707,12.67986696,148.49,148.44,12.7419919]
[1751786878905,7.5419243,148.48,148.44,12.7419919]
[1751786879104,7.5419243,148.47,148.44,12.7419919]
[1751786879333,12.67986696,148.49,148.44,12.7419919]
[1751786879508,7.54160252,148.48,148.44,12.7419919]
[1751786879705,7.54160252,148.47,148.44,12.7419919]
[1751786879909,12.67986696,148.49,148.44,12.7419919]
[1751786880139,7.54160252,148.48,148.44,12.7419919]
[1751786880320,7.54160252,148.47,148.44,12.7419919]
[1751786880513,5.94531272,148.49,148.44,12.7419919]
[1751786880816,7.54094224,148.48,148.44,12.7419919]
[1751786881015,5.94531272,148.49,148.44,12.7419919]
[1751786881016,7.54094224,148.47,148.44,12.7419919]
[1751786881232,12.67978162,148.49,148.44,12.7419919]
[1751786881433,7.5406747,148.48,148.44,12.7419919]
[1751786881615,7.5406747,148.47,148.44,6.79667918]
[1751786881815,12.67978162,148.49,148.44,12.7419919]
[1751786882015,7.54096029,148.48,148.44,40.4648118]
[1751786882319,7.54096029,148.47,148.44,40.4648118]
[1751786882522,12.67978162,148.49,148.44,40.4648118]
[1751786882715,7.54101951,148.48,148.44,40.4648118]
[1751786882914,7.54101951,148.47,148.44,40.4648118]
[1751786883135,5.94531272,148.49,148.44,40.4648118]
[1751786883341,7.54080013,148.48,148.44,40.4648118]
[1751786883516,7.54080013,148.47,148.44,40.4648118]
[1751786883718,5.94531272,148.49,148.44,40.4648118]
[1751786883929,7.54112395,148.48,148.44,40.4648118]
[1751786884130,7.54112395,148.47,148.44,40.4648118]
[1751786884420,5.94531272,148.49,148.44,40.4648118]
[1751786884630,7.54127392,148.48,148.44,40.4648118]
[1751786884825,7.54127392,148.47,148.44,40.4648118]
[1751786885144,5.94531272,148.49,148.44,40.4648118]
[1751786885440,7.54179179,148.48,148.44,40.4648118]
[1751786885625,7.54179179,148.47,148.44,40.4648118]
[1751786885835,5.94531272,148.49,148.44,40.4648118]
[1751786886126,7.54214436,148.48,148.44,40.4648118]
[1751786886425,7.54214436,148.47,148.44,40.4648118]
[1751786886636,5.94531272,148.49,148.44,40.4648118]
[1751786886935,7.54312813,148.48,148.44,40.4648118]
[1751786887119,7.54312813,148.47,148.44,40.4648118]
[1751786887318,5.94531272,148.49,148.44,40.4648118]
[1751786887519,7.54422985,148.48,148.44,40.4648118]
[1751786887735,7.54422985,148.47,148.44,40.4648118]
[1751786887933,5.94531272,148.49,148.44,40.4648118]
[1751786888129,7.54422985,148.48,148.44,40.4648118]
[1751786888336,7.54422985,148.47,148.44,40.4648118]
[1751786888537,12.67978503,148.49,148.44,40.4648118]
[1751786888735,7.54546815,148.48,148.44,40.4648118]
[1751786888943,7.54546815,148.47,148.44,40.4648118]
[1751786889242,12.67978503,148.49,148.44,40.4648118]
[1751786889444,7.54650918,148.48,148.44,40.4648118]
[1751786889637,7.54650918,148.47,148.44,40.4648118]
[1751786889822,12.67978503,148.49,148.44,40.4648118]
[1751786890023,7.54687918,148.48,148.44,40.4648118]
[1751786890255,7.54687918,148.47,148.44,40.4648118]
[1751786890431,7.54687918,148.46,148.44,40.4648118]
[1751786890622,12.67978503,148.49,148.44,40.4648118]
[1751786890820,7.54818974,148.48,148.44,40.4648118]
[1751786891119,7.54818974,148.47,148.44,40.4648118]
[1751786891340,7.54818974,148.46,148.44,40.4648118]
[1751786891538,12.67978503,148.49,148.44,40.4648118]
[1751786891736,7.54964637,148.48,148.44,38.3240113]
[1751786891942,7.54964637,148.47,148.44,38.3240113]
[1751786892245,7.54964637,148.46,148.44,38.3240113]
[1751786892447,10.53898453,148.49,148.44,38.3240113]
[1751786892633,7.55126985,148.48,148.44,38.3240113]
[1751786892938,7.55126985,148.47,148.44,38.3240113]
[1751786893147,7.55126985,148.46,148.44,38.3240113]
[1751786893362,10.53898453,148.49,148.44,38.3240113]
[1751786893516,7.5530856,148.48,148.44,38.3240113]
[1751786893721,7.5530856,148.47,148.44,38.3240113]
[1751786893942,7.5530856,148.46,148.44,38.3240113]
[1751786894137,10.53898453,148.49,148.44,38.3240113]
[1751786894338,7.55480316,148.48,148.44,38.3240113]
[1751786894523,7.55480316,148.47,148.44,38.3240113]
[1751786894730,7.55480316,148.46,148.44,38.3240113]
[1751786895044,10.53898453,148.49,148.44,38.3240113]
[1751786895248,7.55513276,148.48,148.44,38.3240113]
[1751786895427,7.55513276,148.47,148.44,38.3240113]
[1751786895627,7.55513276,148.46,148.44,38.3240113]
[1751786895833,19.98501417,148.49,148.44,38.3240113]
[1751786896147,7.5567565,148.48,148.44,38.3240113]
[1751786896448,7.5567565,148.47,148.44,38.3240113]
[1751786896634,7.5567565,148.46,148.44,38.3240113]
[1751786896833,19.98501417,148.49,148.44,38.3240113]
[1751786897042,7.55856794,148.48,148.44,38.3240113]
[1751786897219,7.55856794,148.47,148.44,38.3240113]
[1751786897425,7.55856794,148.46,148.44,38.3240113]
[1751786897624,7.55856794,148.45,148.44,38.3240113]
[1751786901749,10.53898453,148.49,148.44,38.3240113]
[1751786901938,7.56513767,148.48,148.44,38.3240113]
[1751786902139,10.53861895,148.5,148.44,38.3240113]
[1751786902357,20.82740018,148.49,148.44,38.3240113]
[1751786902564,7.56572798,148.48,148.44,38.3240113]
[1751786902761,7.56572798,148.47,148.44,38.3240113]
[1751786903065,7.56572798,148.46,148.44,38.3240113]
[1751786903243,7.56572798,148.45,148.44,38.3240113]
[1751786907066,9.45715998,148.49,148.44,38.3240113]
[1751786907271,7.56698695,148.48,148.44,38.3240113]
[1751786907575,7.56722235,148.47,148.44,38.3240113]
[1751786907875,7.56722235,148.46,148.44,38.3240113]
[1751786908053,9.45902794,148.49,148.44,38.3240113]
[1751786908354,7.56721962,148.48,148.44,38.3240113]
[1751786908552,7.56721962,148.47,148.44,38.3240113]
[1751786908752,7.56721962,148.46,148.44,38.3240113]
[1751786909065,7.5675908,148.45,148.44,38.3240113]
[1751786913374,7.57163494,148.45,148.44,38.3240113]
[1751786914673,7.57163494,148.45,148.44,56.97366016]
[1751786928185,7.57163494,148.45,148.44,38.3240113]
[1751786964105,7.57163494,148.45,148.44,34.51949908]
[1751786967008,7.57163494,148.45,148.44,38.3240113]
[1751786980295,7.57163494,148.45,148.44,56.97366016]
[1751787003035,9.46454367,148.5,148.45,18.64964886]
[1751787003252,7.57755022,148.49,148.48,3.80451222]
[1751787003423,7.57755022,148.49,148.48,31.52733212]
[1751787004815,1.5139,148.45,148.44,0.06]
[1751787005034,9.09145022,148.45,148.44,0.06]
[1751787005232,7.57755022,148.45,148.44,6.79672864]
[1751787005537,7.57755022,148.45,148.44,10.60124086]
[1751787006527,7.57755022,148.45,148.44,3.86451222]
[1751787006727,7.57755022,148.45,148.44,0.06]
[1751787007212,7.57755022,148.45,148.44,6.79672864]
[1751787010226,7.57755022,148.45,148.44,3.86451222]
[1751787011952,7.57755022,148.45,148.44,42.54050962]
[1751787012121,7.57755022,148.45,148.44,68.54050962]
[1751787012323,9.46454367,148.5,148.44,68.54050962]
[1751787012623,7.57069309,148.49,148.46,3.80451222]
[1751787012847,7.57069309,148.48,148.46,3.80451222]
[1751787013151,7.57069309,148.47,148.44,13.3496199]
[1751787013357,7.57069309,148.46,148.44,0.06]
[1751787013529,7.57069309,148.45,148.44,0.06]
[1751787014028,7.57069309,148.45,148.44,3.86451222]
[1751787015550,7.57069309,148.45,148.44,0.06]
[1751787015720,7.57069309,148.45,148.44,3.86451222]
[1751787016947,7.57069309,148.45,148.44,10.60124086]
[1751787018147,7.57069309,148.45,148.44,23.89086076]
[1751787018551,7.57069309,148.45,148.44,20.08634854]
[1751787018857,7.57069309,148.45,148.44,23.89086076]
[1751787033068,7.57069309,148.45,148.44,17.15413212]
[1751787033710,11.37520531,148.45,148.44,0.06]
[1751787033861,18.11148015,148.45,148.4,20.2496199]
[1751787034046,3.80451222,148.42,148.4,20.2496199]
[1751787034247,7.57069309,148.41,148.4,20.2496199]
[1751787034662,11.37520531,148.41,148.37,13.2896199]
[1751787034970,11.37520531,148.4,148.37,13.2896199]
[1751787035178,7.57069309,148.39,148.37,13.2896199]
[1751787035361,7.57069309,148.38,148.37,13.2896199]
[1751787036762,7.57069309,148.38,148.35,29.80451222]
[1751787036763,7.57069309,148.38,148.35,6.74065501]
[1751787036952,7.57069309,148.37,148.35,10.54516723]
[1751787037150,3.80451222,148.4,148.36,3.80451222]
[1751787037474,7.55365611,148.39,148.36,3.80451222]
[1751787037686,7.55365611,148.38,148.36,3.80451222]
[1751787037870,7.55365611,148.37,148.36,10.54476517]
[1751787038267,3.80451222,148.4,148.36,10.54476517]
[1751787038562,7.54953037,148.39,148.36,10.54476517]
[1751787038885,7.54953037,148.38,148.36,10.54476517]
[1751787039065,10.5427714,148.41,148.36,10.54476517]
[1751787039269,7.54937333,148.4,148.36,10.54476517]
[1751787039585,7.54937333,148.39,148.36,10.54476517]
[1751787039764,7.54937333,148.38,148.36,10.54476517]
[1751787039962,10.5427714,148.41,148.36,10.54476517]
[1751787040175,7.54609228,148.4,148.36,10.54476517]
[1751787040378,7.54609228,148.39,148.36,10.54476517]
[1751787040685,7.54609228,148.38,148.36,10.54476517]
[1751787040880,3.80451222,148.39,148.35,6.74081563]
[1751787041063,7.54317429,148.38,148.35,10.54532785]
[1751787041254,3.80451222,148.4,148.35,10.54532785]
[1751787041462,7.54018866,148.39,148.35,10.54532785]
[1751787041685,7.54018866,148.38,148.35,10.54532785]
[1751787041872,3.80451222,148.4,148.35,10.54532785]
[1751787042072,7.53950491,148.39,148.35,10.54532785]
[1751787042374,16.20342847,148.42,148.36,3.80451222]
[1751787042577,11.34124197,148.41,148.36,17.09413212]
[1751787042778,7.53672975,148.4,148.36,17.09413212]
[1751787042981,7.53672975,148.39,148.36,17.09413212]
[1751787043177,7.53672975,148.4,148.36,17.09413212]
[1751787043372,7.53672975,148.39,148.36,17.09413212]
[1751787043569,7.53672975,148.4,148.36,23.83437736]
[1751787043776,7.53672975,148.39,148.36,23.83437736]
[1751787043962,7.53672975,148.4,148.36,23.83437736]
[1751787044168,7.53672975,148.39,148.36,23.83437736]
[1751787044467,7.53672975,148.4,148.36,23.83437736]
[1751787044795,11.34124197,148.39,148.36,20.02986514]
[1751787045085,3.80451222,148.4,148.36,20.02986514]
[1751787045287,7.53210215,148.39,148.36,20.02986514]
[1751787047087,11.33661437,148.39,148.35,6.77073704]
[1751787047384,7.53210215,148.39,148.35,10.57524926]
[1751787049376,7.53210215,148.39,148.35,10.54524926]
[1751787050869,7.53210215,148.4,148.36,3.80451222]
[1751787051068,7.52559264,148.4,148.37,3.80451222]
[1751787051368,7.52559264,148.41,148.37,3.80451222]
[1751787051597,11.33010486,148.41,148.36,10.54473289]
[1751787051776,7.52559264,148.4,148.36,10.54473289]
[1751787051972,3.80451222,148.41,148.36,10.54473289]
[1751787052176,11.33010486,148.41,148.36,10.54473289]
[1751787052379,7.52559264,148.4,148.36,10.54473289]
[1751787052883,3.80451222,148.41,148.36,10.54473289]
[1751787053095,11.33010486,148.41,148.36,10.54473289]
[1751787056602,11.33010486,148.41,148.36,23.83435279]
[1751787057592,18.06824998,148.41,148.36,23.83435279]
[1751787057898,11.33010486,148.4,148.36,23.83435279]
[1751787060103,11.33010486,148.4,148.36,20.02984057]
[1751787060293,11.33010486,148.4,148.36,23.83435279]
[1751787060495,7.52559264,148.4,148.36,23.83435279]
[1751787060694,11.33010486,148.41,148.36,20.02984057]
[1751787060909,11.33010486,148.41,148.36,23.83435279]
[1751787061301,7.52559264,148.4,148.36,23.83435279]
[1751787064013,11.33010486,148.4,148.36,23.83435279]
[1751787064180,11.33010486,148.4,148.36,20.02984057]
[1751787064505,11.33010486,148.4,148.36,23.83435279]
[1751787065305,11.33010486,148.4,148.36,20.02984057]
[1751787065599,11.33010486,148.4,148.36,23.83435279]
[1751787066416,3.80451222,148.4,148.36,23.83435279]
[1751787066618,3.80451222,148.41,148.36,23.83435279]
[1751787066796,7.52455294,148.4,148.36,23.83435279]
[1751787066996,3.80451222,148.41,148.36,23.83435279]
[1751787067193,7.5247936,148.4,148.36,23.83435279]
[1751787067409,7.5247936,148.39,148.36,23.83435279]
[1751787067615,3.80451222,148.41,148.36,23.83435279]
[1751787067616,7.5247936,148.4,148.36,23.83435279]
[1751787067803,7.5247936,148.39,148.36,23.83435279]
[1751787068003,7.5247936,148.4,148.36,23.83435279]
[1751787068302,7.5247936,148.39,148.36,23.83435279]
[1751787068513,7.5247936,148.4,148.36,23.83435279]
[1751787068713,7.5247936,148.39,148.36,23.83435279]
[1751787068925,7.5247936,148.4,148.36,23.83435279]
[1751787069125,7.5247936,148.39,148.36,23.83435279]
[1751787069318,7.5247936,148.4,148.36,23.83435279]
[1751787069627,7.5247936,148.39,148.36,23.83435279]
[1751787069804,7.5247936,148.4,148.36,23.83435279]
[1751787070004,7.5247936,148.39,148.36,23.83435279]
[1751787070205,7.5247936,148.4,148.36,23.83435279]
[1751787070525,7.5247936,148.39,148.36,23.83435279]
[1751787070724,10.54272229,148.41,148.36,23.83435279]
[1751787070928,7.5322883,148.4,148.36,23.83435279]
[1751787071136,7.5322883,148.39,148.36,23.83435279]
[1751787071426,10.54272229,148.41,148.36,23.83435279]
[1751787071618,7.53493872,148.4,148.36,23.83435279]
[1751787071810,7.53493872,148.39,148.36,20.02984057]
[1751787072014,10.54272229,148.41,148.36,23.83435279]
[1751787072214,7.53492176,148.4,148.36,23.83435279]
[1751787072514,7.53492176,148.39,148.36,23.83435279]
[1751787072714,10.54272229,148.41,148.36,23.83435279]
[1751787072915,7.53767628,148.4,148.36,23.83435279]
[1751787073122,7.53767628,148.39,148.36,23.83435279]
[1751787073322,7.54035884,148.38,148.36,23.83435279]
[1751787073621,10.54272229,148.41,148.36,23.83435279]
[1751787073926,7.54079077,148.4,148.36,23.83435279]
[1751787074130,7.54079077,148.39,148.36,23.83435279]
[1751787074428,7.54079077,148.38,148.36,23.83435279]
[1751787074633,10.54272229,148.41,148.36,23.83435279]
[1751787074933,7.54438225,148.4,148.36,23.83435279]
[1751787075112,7.54438225,148.39,148.36,23.83435279]
[1751787075312,7.54438225,148.38,148.36,23.83435279]
[1751787075525,19.96138092,148.41,148.36,23.83435279]